bitfinex/quotes_SOLUSD_20240814
["timestamp","ask_amount","ask_price","bid_price","bid_amount"]
[1723662534104,12.87,144.63,144.56,6.1697]
[1723662534105,19.7842,144.63,144.56,6.1697]
[1723662534694,19.7842,144.63,144.58,6.9164]
[1723662535112,0.12549,144.66,144.57,6.9167]
[1723662535113,12.87,144.61,144.57,6.9167]
[1723662535805,19.7853,144.61,144.57,6.9167]
[1723662536007,19.7853,144.61,144.56,6.9174]
[1723662537187,12.87,144.59,144.56,6.9174]
[1723662537390,12.87,144.59,144.55,6.9179]
[1723662537779,19.7861,144.59,144.55,6.9179]
[1723662537974,12.87,144.57,144.54,6.9183]
[1723662538307,12.87,144.57,144.51,16.7554659]
[1723662538484,12.87,144.57,144.53,6.9189]
[1723662538685,22.30768,144.6,144.51,16.7554659]
[1723662538686,19.7861,144.59,144.54,6.9183]
[1723662538988,19.7861,144.59,144.51,16.7554659]
[1723662538989,12.87,144.59,144.51,16.7554659]
[1723662539304,19.7861,144.59,144.55,6.9179]
[1723662539889,19.7861,144.59,144.54,6.9184]
[1723662540616,6.9174,144.57,144.51,16.7554659]
[1723662540803,12.87,144.57,144.51,16.7554659]
[1723662540984,12.87,144.57,144.53,6.9189]
[1723662541892,16.28328,144.6,144.54,6.9184]
[1723662542093,6.1486,144.64,144.52,12.99549]
[1723662542285,6.915,144.62,144.57,6.9169]
[1723662542488,6.9151,144.61,144.56,6.9174]
[1723662543691,6.915,144.62,144.57,6.9169]
[1723662543920,39.7842,144.63,144.58,6.9164]
[1723662544089,19.7842,144.63,144.58,6.9164]
[1723662544600,6.9138,144.64,144.59,6.916]
[1723662547512,38.09897803,144.65,144.6,6.9154]
[1723662548335,6.9137,144.64,144.6,6.9154]
[1723662548630,6.9137,144.64,144.59,6.916]
[1723662548835,19.7842,144.63,144.58,6.9164]
[1723662549011,6.9146,144.62,144.58,6.9164]
[1723662550008,19.7843,144.63,144.58,6.9164]
[1723662550428,6.9148,144.62,144.57,6.9169]
[1723662551325,6.9162,144.59,144.54,6.9181]
[1723662551526,6.9162,144.59,144.54,6.9184]
[1723662552436,6.9162,144.59,144.55,6.9179]
[1723662552936,6.9162,144.59,144.54,6.9183]
[1723662553432,0.12549,144.61,144.56,6.9173]
[1723662553617,6.9155,144.61,144.52,28.6579]
[1723662553822,6.9155,144.61,144.56,6.9171]
[1723662554430,13.12098,144.62,144.53,45.0]
[1723662554647,12.99549,144.6,144.52,15.7879]
[1723662555440,6.9162,144.59,144.54,6.9184]
[1723662560446,19.7866,144.58,144.53,6.9189]
[1723662561019,6.917,144.57,144.53,6.9189]
[1723662561236,12.87,144.56,144.52,6.9193]
[1723662562548,12.87,144.56,144.53,6.9189]
[1723662562750,19.7867,144.58,144.54,6.9184]
[1723662563147,19.7869,144.58,144.53,6.9188]
[1723662563655,6.917,144.57,144.53,6.9188]
[1723662564856,6.917,144.57,144.52,6.9193]
[1723662565558,12.87,144.56,144.52,6.9193]
[1723662566061,12.87,144.56,144.51,0.8255659]
[1723662566270,0.25098,144.59,144.51,0.8255659]
[1723662566271,0.12549,144.53,144.51,0.8255659]
[1723662566561,6.9194,144.52,144.51,0.8255659]
[1723662566761,52.17038,144.52,144.51,0.8255659]
[1723662566968,52.42136,144.52,144.51,0.8255659]
[1723662567330,0.12549,144.51,144.44,16.5806]
[1723662567530,65.50196,144.51,144.4,16.5806]
[1723662567732,6.9205,144.5,144.45,6.9227]
[1723662567970,20.50196,144.51,144.46,6.9222]
[1723662567971,33.24647,144.51,144.46,6.9222]
[1723662568260,12.87,144.49,144.4,16.5806]
[1723662568462,19.7913,144.49,144.44,6.9231]
[1723662568861,7.04499,144.52,144.47,6.9217]
[1723662569066,6.9195,144.52,144.47,6.9217]
[1723662569253,12.87,144.53,144.45,12.87]
[1723662569656,29.3182,144.55,144.49,6.9207]
[1723662569974,6.9195,144.52,144.48,6.9212]
[1723662571070,29.3182,144.55,144.47,12.87]
[1723662571240,6.918,144.55,144.5,6.92]
[1723662571441,6.918,144.55,144.44,21.63769]
[1723662571442,6.9185,144.54,144.49,6.9207]
[1723662571858,6.919,144.53,144.49,6.9207]
[1723662573463,6.919,144.53,144.48,6.9212]
[1723662573647,6.919,144.53,144.49,6.9208]
[1723662574473,6.9186,144.54,144.5,6.9203]
[1723662575169,32.23,144.53,144.44,21.5122]
[1723662575354,0.12549,144.51,144.45,6.9226]
[1723662575557,0.12549,144.51,144.4,22.5512]
[1723662575755,20.12549,144.51,144.4,22.5512]
[1723662575963,45.37647,144.5,144.4,22.5512]
[1723662576257,6.9216,144.48,144.4,22.5512]
[1723662576663,6.9224,144.46,144.4,22.5512]
[1723662576866,6.9224,144.46,144.41,6.9243]
[1723662577046,6.9224,144.46,144.42,6.9242]
[1723662577262,6.9228,144.45,144.4,16.2796]
[1723662577685,6.9228,144.45,144.37,17.1051659]
[1723662578353,6.9228,144.45,144.4,6.9251]
[1723662578886,6.9233,144.44,144.39,6.9255]
[1723662579562,6.9229,144.45,144.4,6.9251]
[1723662580080,7.04879,144.44,144.39,6.9256]
[1723662580372,6.9229,144.45,144.4,6.9251]
[1723662581075,6.9224,144.46,144.41,6.9244]
[1723662583260,7.29837,144.47,144.42,6.9242]
[1723662584784,7.04739,144.47,144.42,6.9242]
[1723662585084,6.9219,144.47,144.42,6.9242]
[1723662589184,6.9226,144.46,144.41,6.9246]
[1723662591509,0.12549,144.49,144.43,6.9237]
[1723662591696,6.9218,144.47,144.43,6.9237]
[1723662592930,6.9218,144.47,144.42,6.9241]
[1723662593291,19.8218,144.47,144.42,6.9241]
[1723662594210,12.9,144.45,144.41,6.9247]
[1723662594417,19.8228,144.45,144.41,6.9247]
[1723662596017,6.9234,144.44,144.37,0.8255659]
[1723662596188,12.9,144.43,144.37,0.8255659]
[1723662596500,12.9,144.43,144.4,6.9251]
[1723662596708,19.8229,144.45,144.4,6.9251]
[1723662597417,6.9233,144.44,144.37,0.8255659]
[1723662597588,19.8228,144.45,144.4,6.9251]
[1723662597787,6.9223,144.46,144.41,6.9246]
[1723662598012,6.9223,144.46,144.42,6.9242]
[1723662599804,19.8223,144.46,144.41,6.9245]
[1723662600304,19.8223,144.46,144.42,6.9242]
[1723662600508,7.04869,144.45,144.4,6.9251]
[1723662600710,12.9,144.44,144.38,15.371]
[1723662601402,6.9238,144.43,144.38,15.371]
[1723662602130,6.9234,144.44,144.39,6.9256]
[1723662602633,6.9237,144.43,144.39,6.9256]
[1723662603338,6.9237,144.43,144.37,0.8255659]
[1723662604432,32.28,144.45,144.4,6.9251]
[1723662604610,20.0,144.44,144.4,6.9251]
[1723662604933,26.9237,144.44,144.39,6.9256]
[1723662605723,6.9237,144.44,144.39,6.9256]
[1723662606841,0.12549,144.41,144.37,0.8255659]
[1723662607028,32.28,144.4,144.37,0.8255659]
[1723662607214,0.25098,144.39,144.37,0.8255659]
[1723662607418,6.9261,144.38,144.37,0.8255659]
[1723662608315,6.9258,144.39,144.37,0.8255659]
[1723662609331,6.9252,144.4,144.37,0.8255659]
[1723662610245,6.9257,144.39,144.37,0.8255659]
[1723662614747,6.9252,144.4,144.37,0.8255659]
[1723662615045,6.9243,144.42,144.38,6.9261]
[1723662617348,6.9243,144.42,144.37,7.7520659]
[1723662618040,17.3065,144.46,144.39,6.9253]
[1723662618250,6.9234,144.44,144.39,6.9253]
[1723662618653,2.73304561,144.5,144.43,6.9237]
[1723662618854,6.9222,144.47,144.42,6.9241]
[1723662619363,2.74128595,144.51,144.44,6.9231]
[1723662619658,6.921,144.49,144.45,6.9227]
[1723662619845,6.9205,144.5,144.45,6.9227]
[1723662620150,6.921,144.49,144.44,6.9228]
[1723662620451,11.2889022,144.54,144.4,6.68769]
[1723662620655,11.2889022,144.54,144.46,6.9219]
[1723662621040,11.2889022,144.54,144.45,6.9226]
[1723662621041,6.9204,144.5,144.45,6.9226]
[1723662621241,2.7970606,144.54,144.41,45.25098]
[1723662621557,2.7970606,144.54,144.46,6.9221]
[1723662621558,20.0,144.54,144.46,6.9221]
[1723662621762,20.0,144.54,144.45,6.9226]
[1723662621763,6.9204,144.5,144.45,6.9226]
[1723662622547,20.0,144.54,144.41,45.25098]
[1723662622548,6.92,144.51,144.46,6.9219]
[1723662622752,6.92,144.51,144.46,23.0403]
[1723662623673,6.9195,144.52,144.47,6.9218]
[1723662623974,32.28,144.54,144.49,6.9204]
[1723662623975,6.9188,144.54,144.49,6.9204]
[1723662624346,6.9189,144.53,144.48,6.9213]
[1723662625352,6.9189,144.53,144.46,22.2412]
[1723662625679,6.9185,144.54,144.49,6.9208]
[1723662626469,6.9171,144.57,144.52,6.9193]
[1723662626671,6.9167,144.58,144.53,6.9189]
[1723662626848,6.917,144.57,144.52,28.4203]
[1723662627057,6.9167,144.58,144.53,6.9189]
[1723662627776,6.916,144.6,144.54,6.9184]
[1723662628073,278.75760871,144.63,144.54,6.9184]
[1723662628280,6.9164,144.59,144.54,6.9184]
[1723662629467,6.9166,144.58,144.53,6.9188]
[1723662629857,6.9175,144.56,144.52,21.501]
[1723662630460,6.9171,144.57,144.52,28.4204]
[1723662630949,6.9176,144.56,144.52,21.501]
[1723662631773,6.918,144.55,144.52,21.501]
[1723662632680,6.9185,144.54,144.52,15.4273]
[1723662633984,6.9181,144.55,144.52,15.4273]
[1723662634357,6.9185,144.54,144.52,15.4273]
[1723662636580,6.9185,144.54,144.49,15.4869]
[1723662636977,32.28,144.54,144.49,15.4869]
[1723662637158,32.28,144.52,144.49,15.4869]
[1723662637353,32.28,144.52,144.46,6.9219]
[1723662637659,39.1995,144.52,144.45,21.558]
[1723662637859,32.28,144.52,144.48,6.921]
[1723662639481,32.28,144.52,144.45,21.558]
[1723662639650,6.9203,144.51,144.47,6.9218]
[1723662640052,39.1996,144.52,144.47,6.9218]
[1723662640784,6.9196,144.52,144.48,6.9213]
[1723662642788,6.919,144.53,144.48,6.9213]
[1723662643165,6.9186,144.54,144.46,0.12549]
[1723662643374,6.9181,144.55,144.5,6.9204]
[1723662643571,17.291,144.59,144.51,6.9198]
[1723662643886,20.0,144.58,144.5,6.9202]
[1723662644082,20.0,144.58,144.47,15.4869]
[1723662644083,6.9186,144.54,144.47,15.4869]
[1723662644286,6.9186,144.54,144.49,6.9205]
[1723662644988,6.9186,144.54,144.5,6.9202]
[1723662645177,6.9181,144.55,144.5,6.9202]
[1723662646791,32.28,144.56,144.5,6.9202]
[1723662646993,6.9186,144.54,144.49,6.9208]
[1723662647890,6.9186,144.54,144.5,6.9203]
[1723662648585,6.9181,144.55,144.5,6.9203]
[1723662648778,6.9185,144.54,144.5,6.9203]
[1723662649891,17.293,144.57,144.48,6.9212]
[1723662649892,6.9194,144.52,144.48,6.9212]
[1723662650076,6.9194,144.52,144.47,15.4869]
[1723662650077,6.9194,144.52,144.47,22.4086]
[1723662650880,6.9194,144.52,144.48,6.9212]
[1723662651675,6.9194,144.52,144.47,22.4085]
[1723662652390,6.9194,144.52,144.48,6.9213]
[1723662653397,6.9194,144.52,144.47,22.4085]
[1723662654402,6.9191,144.53,144.47,15.4869]
[1723662655499,0.12549,144.55,144.47,15.4869]
[1723662655799,26.9183,144.55,144.5,6.9202]
[1723662657084,6.9164,144.59,144.55,6.9179]
[1723662657493,293.8013,144.66,144.51,48.26309]
[1723662657799,6.9152,144.61,144.57,6.9169]
[1723662658304,32.28,144.63,144.57,6.9169]
[1723662658305,6.9147,144.62,144.57,6.9169]
[1723662658691,6.9147,144.62,144.58,6.9165]
[1723662659128,6.9147,144.62,144.57,6.917]
[1723662660325,32.28,144.63,144.56,6.9174]
[1723662661026,0.50196,144.62,144.51,15.8576]
[1723662661317,6.9157,144.6,144.55,6.9176]
[1723662662013,6.9157,144.6,144.56,6.9174]
[1723662662212,6.9152,144.61,144.56,6.9174]
[1723662663527,59.1946,144.63,144.57,6.9169]
[1723662663713,26.9146,144.63,144.52,32.53098]
[1723662664028,6.9147,144.62,144.58,6.9164]
[1723662664536,6.9147,144.62,144.58,21.9338]
[1723662664817,17.2812,144.67,144.59,6.9157]
[1723662665022,6.9141,144.64,144.59,6.9157]
[1723662666023,6.9142,144.63,144.59,6.9157]
[1723662667225,6.9138,144.64,144.59,6.9157]
[1723662667821,15.5696,144.69,144.58,15.0174]
[1723662668015,6.9122,144.68,144.63,6.9137]
[1723662668207,6.9123,144.67,144.63,6.9137]
[1723662668816,6.9119,144.68,144.64,6.9136]
[1723662669207,6.9116,144.69,144.65,6.9131]
[1723662670228,6.9116,144.69,144.64,22.337]
[1723662670628,6.9119,144.68,144.64,22.337]
[1723662671712,6.9119,144.68,144.64,15.4234]
[1723662671913,6.9123,144.67,144.64,15.4234]
[1723662672508,6.9118,144.68,144.64,15.4234]
[1723662673118,32.28,144.68,144.6,23.0386]
[1723662673322,6.914,144.64,144.6,23.0386]
[1723662673527,32.28,144.66,144.61,6.9151]
[1723662673528,6.9132,144.65,144.61,6.9151]
[1723662674127,6.9132,144.65,144.6,29.9541]
[1723662674522,6.9132,144.65,144.61,6.915]
[1723662674744,6.9128,144.66,144.62,6.9145]
[1723662675115,6.9133,144.65,144.61,6.915]
[1723662676928,6.9128,144.66,144.61,6.915]
[1723662677127,6.9126,144.67,144.62,6.9145]
[1723662678139,6.9127,144.66,144.62,6.9145]
[1723662679040,6.9123,144.67,144.63,6.9141]
[1723662679224,6.9123,144.67,144.6,23.0386]
[1723662679419,6.9123,144.67,144.62,6.9145]
[1723662680144,6.9127,144.66,144.62,6.9145]
[1723662680445,32.28,144.66,144.6,23.0386]
[1723662680829,6.9143,144.63,144.6,23.0386]
[1723662681643,6.9138,144.64,144.6,23.0386]
[1723662682030,6.9138,144.64,144.6,29.9542]
[1723662682549,6.9138,144.64,144.6,23.0386]
[1723662683951,6.9145,144.63,144.6,16.3906]
[1723662684126,6.9151,144.61,144.6,16.3906]
[1723662684454,6.9151,144.61,144.57,16.0344]
[1723662685649,6.9151,144.61,144.57,22.9513]
[1723662687039,6.9156,144.6,144.57,16.0344]
[1723662687550,6.9152,144.61,144.57,16.0344]
[1723662689149,6.9152,144.61,144.57,22.9513]
[1723662690250,6.9152,144.61,144.57,16.0344]
[1723662691352,17.279,144.69,144.58,45.0]
[1723662691564,17.279,144.69,144.61,6.9151]
[1723662691855,28.35569318,144.71,144.59,0.12549]
[1723662692058,6.9126,144.67,144.62,6.9145]
[1723662692361,6.9132,144.65,144.61,6.915]
[1723662692961,19.7828,144.66,144.61,6.915]
[1723662693155,6.9124,144.67,144.62,6.9146]
[1723662693858,6.9124,144.67,144.63,6.9141]
[1723662694065,6.9127,144.66,144.62,21.6204]
[1723662694275,17.2798,144.68,144.62,15.4125]
[1723662694432,20.25098,144.67,144.58,66.6204]
[1723662694635,20.25098,144.67,144.58,21.6204]
[1723662694934,32.17,144.64,144.58,21.6204]
[1723662695949,6.9141,144.63,144.59,6.916]
[1723662696754,6.9138,144.64,144.59,6.916]
[1723662697136,6.9136,144.65,144.6,6.9152]
[1723662697445,6.9129,144.66,144.61,6.915]
[1723662697646,20.0,144.67,144.58,21.6204]
[1723662697855,32.59236207,144.7,144.59,45.37647]
[1723662698052,52.29549,144.7,144.59,45.37647]
[1723662698255,6.9126,144.67,144.62,6.9145]
[1723662698644,6.1897,144.72,144.59,77.54647]
[1723662698847,6.9116,144.69,144.64,6.9136]
[1723662699171,6.9119,144.68,144.64,6.9136]
[1723662702250,6.9119,144.68,144.63,6.914]
[1723662705965,6.9123,144.67,144.63,6.914]
[1723662706164,6.9127,144.66,144.62,6.9143]
[1723662706549,6.9124,144.67,144.62,6.9143]
[1723662706762,6.9124,144.67,144.59,45.37647]
[1723662706975,6.9124,144.67,144.63,6.9141]
[1723662707188,6.9131,144.66,144.59,45.0]
[1723662707900,17.2776,144.7,144.62,6.9143]
[1723662707901,6.9124,144.67,144.62,6.9143]
[1723662708264,6.9124,144.67,144.63,6.9141]
[1723662709590,6.9124,144.67,144.62,6.9145]
[1723662709767,0.12549,144.69,144.59,45.0]
[1723662710103,6.9137,144.64,144.6,6.9153]
[1723662710255,0.12549,144.65,144.58,21.6204]
[1723662710589,6.9154,144.61,144.58,15.4125]
[1723662710953,6.9157,144.6,144.56,6.9174]
[1723662712393,6.9146,144.63,144.55,21.2108]
[1723662712711,6.9146,144.63,144.58,6.9164]
[1723662712902,52.42098,144.65,144.59,6.916]
[1723662713110,6.9142,144.63,144.58,6.9164]
[1723662713725,6.9142,144.63,144.59,6.916]
[1723662714081,6.9142,144.63,144.58,6.9164]
[1723662718914,6.9142,144.63,144.56,45.0]
[1723662718915,6.9138,144.64,144.6,6.9156]
[1723662719093,6.9138,144.64,144.56,45.0]
[1723662719419,6.9138,144.64,144.59,6.9159]
[1723662719728,6.9138,144.64,144.6,6.9154]
[1723662720389,280.72993528,144.74,144.58,16.2869]
[1723662720390,6.84877995,144.71,144.58,16.2869]
[1723662720704,6.9127,144.66,144.62,6.9142]
[1723662721035,6.9127,144.66,144.61,6.915]
[1723662721190,6.9134,144.65,144.59,51.1638]
[1723662721533,6.9134,144.65,144.61,6.9151]
[1723662721713,6.9137,144.64,144.59,58.0795]
[1723662722014,23.07119,144.68,144.58,16.2869]
[1723662722225,55.91410552,144.68,144.58,16.2869]
[1723662722527,6.9143,144.63,144.58,23.2033]
[1723662723018,6.9151,144.61,144.58,16.2869]
[1723662723213,6.9148,144.62,144.58,16.2869]
[1723662723431,6.9151,144.61,144.56,6.9175]
[1723662723806,6.9157,144.6,144.56,6.9175]
[1723662724293,6.9152,144.61,144.56,6.9175]
[1723662725219,17.2836,144.65,144.57,6.9169]
[1723662725220,6.9147,144.62,144.57,6.9169]
[1723662725602,6.9147,144.62,144.55,6.1245]
[1723662725603,6.9147,144.62,144.58,6.9165]
[1723662726641,0.12549,144.64,144.58,6.9165]
[1723662726642,6.9142,144.63,144.58,6.9164]
[1723662727739,6.9142,144.63,144.59,6.9158]
[1723662727948,6.9132,144.66,144.56,0.12549]
[1723662728237,6.9132,144.66,144.61,6.9149]
[1723662728446,6.9132,144.66,144.62,6.9146]
[1723662728626,19.38019083,144.67,144.62,6.9146]
[1723662728946,6.9124,144.67,144.62,6.9146]
[1723662729444,6.9124,144.67,144.63,6.9141]
[1723662731248,6.9118,144.68,144.63,6.9141]
[1723662734231,29.74145405,144.71,144.63,6.9141]
[1723662734444,6.9145,144.63,144.58,6.9162]
[1723662734651,6.9146,144.62,144.57,13.2327]
[1723662734835,6.9143,144.63,144.58,6.9164]
[1723662735035,6.9141,144.64,144.59,6.9159]
[1723662736048,17.40679,144.67,144.58,6.9165]
[1723662736049,6.9143,144.63,144.58,6.9165]
[1723662736547,6.9143,144.63,144.59,6.916]
[1723662738357,6.9133,144.65,144.6,6.9156]
[1723662738842,6.9138,144.64,144.6,6.9156]
[1723662740857,6.9138,144.64,144.59,6.9159]
[1723662743642,6.9142,144.63,144.59,6.9159]
[1723662743969,6.9142,144.63,144.58,6.9165]
[1723662744346,6.9142,144.63,144.59,6.916]
[1723662746970,6.9142,144.63,144.58,6.9164]
[1723662747267,6.4147,144.62,144.57,13.2327]
[1723662747848,6.4147,144.62,144.58,6.9165]
[1723662754393,12.88,144.63,144.57,6.3158]
[1723662754394,6.9151,144.61,144.57,13.2325]
[1723662754684,6.9157,144.6,144.56,15.2337]
[1723662754886,6.9157,144.6,144.53,21.746]
[1723662755059,6.9157,144.6,144.54,45.0]
[1723662755249,6.9163,144.59,144.53,21.746]
[1723662755577,19.7963,144.59,144.53,21.746]
[1723662757467,6.9166,144.58,144.53,15.5014]
[1723662757668,6.9174,144.57,144.49,22.658]
[1723662757861,6.9174,144.57,144.52,6.919]
[1723662757862,19.7974,144.57,144.52,6.919]
[1723662758367,12.88,144.57,144.53,6.9189]
[1723662758673,6.9162,144.59,144.5,12.88]
[1723662758881,6.9168,144.58,144.54,6.9183]
[1723662760157,6.918,144.55,144.51,6.9195]
[1723662760880,19.7976,144.56,144.51,6.9195]
[1723662761796,6.919,144.53,144.49,22.658]
[1723662761992,6.919,144.53,144.45,22.5426]
[1723662762276,32.23,144.55,144.48,6.9213]
[1723662762277,6.9195,144.52,144.48,6.9213]
[1723662762786,6.919,144.53,144.48,6.9213]
[1723662763359,6.919,144.53,144.49,6.9208]
[1723662763590,6.9185,144.54,144.49,6.9208]
[1723662765082,6.919,144.53,144.49,6.9208]
[1723662766977,6.9186,144.54,144.49,6.9208]
[1723662767184,0.12549,144.56,144.5,6.9203]
[1723662767480,6.9184,144.55,144.5,6.9203]
[1723662767660,26.9185,144.54,144.5,6.9203]
[1723662768381,26.9185,144.54,144.49,6.9207]
[1723662769177,26.9185,144.54,144.46,0.12549]
[1723662769178,26.9185,144.54,144.5,6.9203]
[1723662769896,6.918,144.55,144.5,6.9203]
[1723662770089,6.918,144.55,144.46,0.12549]
[1723662770383,6.918,144.55,144.46,45.50196]
[1723662770587,6.918,144.55,144.5,6.92]
[1723662771784,6.9186,144.54,144.5,6.92]
[1723662773789,6.9186,144.54,144.49,6.9207]
[1723662775397,6.9192,144.53,144.49,6.9207]
[1723662777285,6.9181,144.55,144.46,45.0]
[1723662777485,6.9181,144.55,144.47,0.50196]
[1723662778479,6.9181,144.55,144.5,6.9203]
[1723662779585,6.9186,144.54,144.5,6.9203]
[1723662780398,0.12549,144.56,144.46,45.0]
[1723662780581,6.9196,144.52,144.48,6.921]
[1723662780780,6.9191,144.53,144.48,6.921]
[1723662781497,6.9191,144.53,144.49,6.9208]
[1723662782499,6.9186,144.54,144.5,6.9202]
[1723662783014,6.9189,144.53,144.49,6.9207]
[1723662788212,12.89,144.53,144.47,6.9215]
[1723662789120,12.89,144.49,144.41,21.6941]
[1723662789317,6.9217,144.48,144.41,21.6941]
[1723662789612,6.9217,144.48,144.44,6.9229]
[1723662791007,12.89,144.53,144.42,12.89]
[1723662791215,6.9199,144.51,144.47,6.9215]
[1723662792781,26.9195,144.52,144.47,6.9215]
[1723662794189,13.01549,144.51,144.43,45.0]
[1723662794389,12.89,144.51,144.43,45.0]
[1723662795803,6.9205,144.5,144.46,6.9222]
[1723662796296,6.9205,144.5,144.45,6.9226]
[1723662796489,12.89,144.51,144.45,6.9226]
[1723662796490,6.9212,144.49,144.45,6.9226]
[1723662796806,6.9212,144.49,144.41,21.6941]
[1723662796807,6.9214,144.48,144.41,21.6941]
[1723662796995,6.9214,144.48,144.44,6.9231]
[1723662797197,6.9214,144.48,144.43,6.9236]
[1723662797599,6.0379946,144.48,144.44,6.9232]
[1723662799712,6.0379946,144.48,144.42,17.3098]
[1723662799713,0.12549,144.48,144.42,17.3098]
[1723662799905,12.89,144.47,144.42,17.3098]
[1723662800787,6.9225,144.46,144.42,24.2339]
[1723662801012,19.8119,144.47,144.42,24.2339]
[1723662801416,19.8119,144.47,144.43,6.9237]
[1723662803009,6.9219,144.47,144.43,6.9237]
[1723662804507,6.9229,144.45,144.42,17.3098]
[1723662804711,6.9237,144.44,144.39,17.3133]
[1723662805815,19.8129,144.45,144.4,6.9248]
[1723662806019,19.8129,144.45,144.41,6.9246]
[1723662807319,6.9229,144.45,144.41,6.9246]
[1723662807506,12.89,144.47,144.41,6.9246]
[1723662807507,6.9224,144.46,144.41,6.9246]
[1723662807817,6.9229,144.45,144.41,6.9246]
[1723662808004,19.8129,144.45,144.41,6.9246]
[1723662808206,19.8129,144.45,144.39,17.3133]
[1723662808207,19.8129,144.45,144.4,6.925]
[1723662808719,6.9233,144.44,144.4,6.925]
[1723662808918,6.9233,144.44,144.39,24.2388]
[1723662809105,6.9242,144.42,144.38,6.926]
[1723662810300,6.9242,144.42,144.37,23.1218659]
[1723662810696,6.9248,144.41,144.37,0.8255659]
[1723662810905,7.05159,144.38,144.37,0.8255659]
[1723662811104,27.30257,144.38,144.37,0.8255659]
[1723662811405,27.42806,144.38,144.37,0.8255659]
[1723662811799,6.9281,144.34,144.29,6.9304]
[1723662812094,6.9281,144.34,144.27,24.2595]
[1723662812095,6.929,144.32,144.27,24.2595]
[1723662812294,32.33,144.34,144.27,24.2595]
[1723662812491,0.50196,144.33,144.27,24.2595]
[1723662812729,20.50196,144.33,144.27,24.2595]
[1723662813320,27.43056,144.33,144.27,24.2595]
[1723662813524,6.9291,144.32,144.27,24.2595]
[1723662814415,6.9297,144.31,144.27,17.3282]
[1723662814613,27.43086,144.33,144.27,24.2595]
[1723662814948,27.43086,144.33,144.27,17.3282]
[1723662814949,0.12549,144.31,144.27,17.3282]
[1723662815434,7.30607,144.31,144.26,6.9318]
[1723662815720,7.05509,144.31,144.26,6.9318]
[1723662816304,6.93,144.3,144.25,15.0039]
[1723662816499,6.9295,144.31,144.26,6.9316]
[1723662816805,7.05459,144.32,144.26,6.9316]
[1723662817429,7.05459,144.32,144.27,6.9313]
[1723662817430,6.9291,144.32,144.27,6.9313]
[1723662817916,6.9295,144.31,144.26,6.9317]
[1723662818123,7.05449,144.32,144.26,6.9317]
[1723662818803,7.05449,144.32,144.27,6.9312]
[1723662819812,7.18048,144.31,144.26,6.9319]
[1723662820009,6.9305,144.29,144.25,15.0039]
[1723662820215,6.93,144.3,144.24,6.9326]
[1723662821020,6.9311,144.28,144.23,17.3332]
[1723662821210,0.12549,144.28,144.22,0.8255659]
[1723662821415,7.18208,144.28,144.23,6.9332]
[1723662821720,6.48739,144.26,144.22,0.8255659]
[1723662821906,6.9333,144.23,144.22,0.8255659]
[1723662822223,27.05879,144.23,144.22,0.8255659]
[1723662822516,27.43526,144.23,144.22,0.8255659]
[1723662823907,20.25098,144.23,144.22,0.8255659]
[1723662824102,27.18428,144.23,144.22,0.8255659]
[1723662824307,27.43526,144.23,144.22,0.8255659]
[1723662825340,59.76526,144.23,144.22,0.8255659]
[1723662825937,120.29536,144.23,144.22,0.8255659]